bitfinex/quotes_BTCUSD_20230103
["timestamp","ask_amount","ask_price","bid_price","bid_amount"]
[1672712418632,2.17733846,16710.0,16709.0,0.77890858]
[1672712418813,1.57072192,16710.0,16709.0,0.77890858]
[1672712419447,2.17735433,16710.0,16709.0,0.77890858]
[1672712422714,1.57072192,16710.0,16709.0,0.77890858]
[1672712423199,1.57072192,16710.0,16709.0,0.77879923]
[1672712424620,1.57072192,16710.0,16709.0,0.07879923]
[1672712425840,1.57072192,16710.0,16709.0,0.77879923]
[1672712431124,2.17743741,16710.0,16709.0,2.18248073]
[1672712431368,2.17743741,16710.0,16709.0,1.56513773]
[1672712431620,1.87743741,16710.0,16709.0,2.10790641]
[1672712431886,0.6731694,16710.0,16709.0,2.72524941]
[1672712432125,0.06645391,16710.0,16709.0,2.72524941]
[1672712435105,0.06645391,16710.0,16709.0,2.10790641]
[1672712435876,0.06645391,16710.0,16709.0,2.72524941]
[1672712436371,0.06645391,16710.0,16709.0,2.10790641]
[1672712440880,0.06645391,16710.0,16709.0,1.40790641]
[1672712441622,0.06645391,16710.0,16709.0,2.10790641]
[1672712444122,0.06645391,16710.0,16709.0,2.72524941]
[1672712444607,0.06645391,16710.0,16709.0,2.10790641]
[1672712447502,0.06645391,16710.0,16709.0,1.40790641]
[1672712447797,0.06645391,16710.0,16709.0,1.40783492]
[1672712448046,0.06645391,16710.0,16709.0,1.56973492]
[1672712448266,0.06645391,16710.0,16709.0,2.26973492]
[1672712451119,0.06645391,16710.0,16709.0,2.26473492]
[1672712453821,0.06145391,16710.0,16709.0,2.26473492]
[1672712454331,0.06145391,16710.0,16709.0,1.56473492]
[1672712455301,0.06145391,16710.0,16709.0,2.26473492]
[1672712460185,0.05645391,16710.0,16709.0,2.26473492]
[1672712461461,0.05645391,16710.0,16709.0,1.56473492]
[1672712461711,0.05645391,16710.0,16709.0,1.55973492]
[1672712462706,0.05645391,16710.0,16709.0,2.25973492]
[1672712468657,0.05645391,16710.0,16709.0,1.55973492]
[1672712469433,0.05645391,16710.0,16709.0,2.25973492]
[1672712475333,0.05645391,16710.0,16709.0,1.55973492]
[1672712475605,0.05645391,16710.0,16709.0,2.25973492]
[1672712483272,0.05645391,16710.0,16709.0,2.25961561]
[1672712484262,0.60671549,16711.0,16709.0,2.25961561]
[1672712484514,0.60671549,16711.0,16710.0,0.1619]
[1672712484763,0.60671549,16711.0,16710.0,1.6482385]
[1672712485275,0.60671549,16711.0,16710.0,0.8619]
[1672712485526,0.61971549,16711.0,16710.0,1.6482385]
[1672712485783,0.61971549,16711.0,16710.0,0.7]
[1672712486544,0.61971549,16711.0,16710.0,1.4863385]
[1672712486789,1.15828249,16711.0,16710.0,1.4863385]
[1672712487032,0.551567,16711.0,16710.0,1.4863385]
[1672712487798,0.538567,16711.0,16710.0,1.4863385]
[1672712488054,0.551567,16711.0,16710.0,1.4863385]
[1672712488299,0.538567,16711.0,16710.0,1.4863385]
[1672712488523,0.542567,16711.0,16710.0,1.5583385]
[1672712492289,1.99634949,16711.0,16710.0,0.772]
[1672712493887,1.389634,16711.0,16710.0,0.772]
[1672712494647,1.99626498,16711.0,16710.0,0.772]
[1672712496425,1.99613644,16711.0,16710.0,0.772]
[1672712497965,2.15793644,16711.0,16710.0,0.772]
[1672712504098,2.15793644,16711.0,16710.0,0.77189205]
[1672712506959,1.551434,16711.0,16710.0,1.55823055]
[1672712507214,2.15793644,16711.0,16710.0,0.77189205]
[1672712507971,1.99613644,16711.0,16710.0,0.77189205]
[1672712512329,1.99597342,16711.0,16710.0,0.77189205]
[1672712512828,1.789634,16711.0,16710.0,0.77189205]
[1672712514857,9.289634,16711.0,16710.0,0.77189205]
[1672712517952,9.451534,16711.0,16710.0,0.77189205]
[1672712519020,1.951534,16711.0,16710.0,0.77189205]
[1672712519509,9.451534,16711.0,16710.0,0.77189205]
[1672712520758,9.451534,16711.0,16710.0,0.072]
[1672712521468,9.451534,16711.0,16710.0,0.772]
[1672712523173,1.951534,16711.0,16710.0,0.772]
[1672712523906,9.451534,16711.0,16710.0,0.772]
[1672712524891,9.451534,16711.0,16710.0,0.77190236]
[1672712527697,9.451534,16711.0,16710.0,0.07190236]
[1672712527966,10.05193627,16711.0,16710.0,0.77190236]
[1672712528471,9.451534,16711.0,16710.0,0.77190236]
[1672712528738,9.911534,16711.0,16710.0,0.77190236]
[1672712528998,10.66932728,16711.0,16710.0,0.77190236]
[1672712529252,10.73190258,16711.0,16710.0,0.77190236]
[1672712530744,9.9741093,16711.0,16710.0,0.77190236]
[1672712531484,9.86111473,16711.0,16710.0,0.77190236]
[1672712532725,9.6749093,16711.0,16710.0,0.77190236]
[1672712533488,9.5130093,16711.0,16710.0,0.77190236]
[1672712540008,9.5130093,16711.0,16710.0,0.07190236]
[1672712540770,9.5130093,16711.0,16710.0,0.77190236]
[1672712544739,9.5130093,16711.0,16710.0,0.77182092]
[1672712547976,9.3522093,16711.0,16710.0,0.77182092]
[1672712548241,9.35206033,16711.0,16710.0,0.77182092]
[1672712550756,10.2366817,16711.0,16710.0,0.77182092]
[1672712551006,11.49446024,16711.0,16710.0,0.77182092]
[1672712551277,12.11709024,16711.0,16710.0,0.7103105]
[1672712551531,11.23246887,16711.0,16710.0,0.53125358]
[1672712552029,11.22846887,16711.0,16710.0,0.53125358]
[1672712552555,11.35246887,16711.0,16710.0,0.53325358]
[1672712553104,11.95287114,16711.0,16710.0,0.34225953]
[1672712553337,0.07161324,16710.0,16708.0,0.00165788]
[1672712553582,3.86246744,16709.0,16708.0,0.00165788]
[1672712553844,4.90481886,16709.0,16708.0,0.00165788]
[1672712554091,4.91331886,16709.0,16708.0,0.00165788]
[1672712554343,13.02339913,16709.0,16708.0,0.00165788]
[1672712554850,11.97589416,16709.0,16708.0,0.00165788]
[1672712555356,12.10789416,16709.0,16708.0,0.00165788]
[1672712555570,11.72375072,16709.0,16708.0,0.70165788]
[1672712556119,11.22375072,16709.0,16708.0,0.70165788]
[1672712556403,11.72375072,16709.0,16708.0,0.70165788]
[1672712556918,12.32415299,16709.0,16708.0,0.70165788]
[1672712557196,13.20829643,16709.0,16708.0,0.70165788]
[1672712557411,12.10789416,16709.0,16708.0,0.70165788]
[1672712557666,11.72375072,16709.0,16708.0,0.70165788]
[1672712557914,11.06185072,16709.0,16708.0,0.70165788]
[1672712560657,11.06185072,16709.0,16708.0,0.69660734]
[1672712560938,11.56185072,16709.0,16708.0,0.69660734]
[1672712563950,12.04141447,16709.0,16708.0,0.69660734]
[1672712564957,12.92555791,16709.0,16708.0,0.69660734]
[1672712565212,12.04141447,16709.0,16708.0,0.69660734]
[1672712565706,12.92555791,16709.0,16708.0,0.69660734]
[1672712566965,13.22481791,16709.0,16708.0,0.69660734]
[1672712567705,13.22481791,16709.0,16707.0,0.00231067]
[1672712567706,0.4,16708.0,16707.0,0.00231067]
[1672712567947,1.947728,16708.0,16707.0,0.00231067]
[1672712568728,9.447728,16708.0,16707.0,0.70231067]
[1672712569023,9.524728,16708.0,16707.0,0.70231067]
[1672712569256,10.05796454,16708.0,16707.0,0.70231067]
[1672712571040,9.524728,16708.0,16707.0,0.70231067]
[1672712575615,10.024728,16708.0,16707.0,0.70231067]
[1672712576608,9.524728,16708.0,16707.0,0.70231067]
[1672712577118,10.024728,16708.0,16707.0,0.70231067]
[1672712578113,10.014728,16708.0,16707.0,0.70231067]
[1672712578882,10.78533552,16708.0,16707.0,0.70231067]
[1672712580400,10.014728,16708.0,16707.0,0.70231067]
[1672712581404,10.89887144,16708.0,16707.0,0.70231067]
[1672712581909,10.89877501,16708.0,16707.0,0.70231067]
[1672712582151,11.19803501,16708.0,16707.0,0.70231067]
[1672712585689,11.79843728,16708.0,16707.0,0.70231067]
[1672712586719,11.79843728,16708.0,16707.0,0.00231067]
[1672712587744,10.69803501,16708.0,16707.0,0.70231067]
[1672712587990,11.35993501,16708.0,16707.0,0.70231067]
[1672712588243,10.85993501,16708.0,16707.0,0.70231067]
[1672712592719,10.56067501,16708.0,16707.0,0.70231067]
[1672712593723,10.23687501,16708.0,16707.0,0.70231067]
[1672712597684,9.35273157,16708.0,16707.0,0.70231067]
[1672712603634,9.35273157,16708.0,16707.0,0.00231067]
[1672712604753,9.35273157,16708.0,16707.0,0.70231067]
[1672712606218,9.35273157,16708.0,16707.0,0.70224137]
[1672712606699,10.23687501,16708.0,16707.0,0.70224137]
[1672712607191,9.35273157,16708.0,16707.0,0.70224137]
[1672712607431,10.23687501,16708.0,16707.0,0.70224137]
[1672712610719,10.23687501,16708.0,16707.0,0.00224137]
[1672712611704,10.23687501,16708.0,16707.0,0.70224137]
[1672712612943,8.962828,16708.0,16707.0,0.70224137]
[1672712617736,8.962828,16708.0,16707.0,0.00224137]
[1672712618764,8.962828,16708.0,16707.0,0.70224137]
[1672712624867,8.962828,16708.0,16707.0,0.00224137]
[1672712625930,8.962828,16708.0,16707.0,0.70224137]
[1672712629455,8.962828,16708.0,16707.0,0.70215464]
[1672712631821,8.962828,16708.0,16707.0,0.00215464]
[1672712632801,0.4,16707.0,16706.0,0.0019596]
[1672712633034,1.505602,16707.0,16706.0,0.0019596]
[1672712633285,1.505602,16707.0,16706.0,0.7019596]
[1672712633815,9.005602,16707.0,16706.0,0.7019596]
[1672712634331,9.015602,16707.0,16706.0,0.7019596]
[1672712639328,9.015602,16707.0,16706.0,0.0019596]
[1672712639816,9.015602,16707.0,16706.0,0.7019596]
[1672712645499,9.6225244,16707.0,16706.0,0.7019596]
[1672712648009,9.6225244,16707.0,16706.0,0.8635596]
[1672712650763,9.015602,16707.0,16706.0,0.8635596]
[1672712651744,9.015602,16707.0,16706.0,0.1635596]
[1672712652730,9.015602,16707.0,16706.0,0.8635596]
[1672712654520,9.015602,16707.0,16706.0,0.86349311]
[1672712657947,9.015602,16707.0,16706.0,0.70189311]
[1672712658691,9.015602,16707.0,16706.0,0.00189311]
[1672712659659,9.015602,16707.0,16706.0,0.70189311]
[1672712665643,9.015602,16707.0,16706.0,0.00189311]
[1672712666657,9.015602,16707.0,16706.0,0.70189311]
[1672712672669,9.015602,16707.0,16706.0,0.00189311]
[1672712673633,9.015602,16707.0,16706.0,0.70189311]
[1672712675187,9.015602,16707.0,16706.0,0.70181756]
[1672712684162,9.015602,16707.0,16706.0,0.00181756]
[1672712685172,9.015602,16707.0,16706.0,0.70181756]
[1672712698058,9.015602,16707.0,16706.0,0.00181756]
[1672712698826,9.015602,16707.0,16706.0,0.00170699]
[1672712699079,9.015602,16707.0,16706.0,0.70170699]
[1672712703328,9.06886767,16707.0,16706.0,0.70170699]
[1672712705070,9.06886767,16707.0,16706.0,0.00170699]
[1672712706110,9.06886767,16707.0,16706.0,0.70170699]
[1672712712048,9.06886767,16707.0,16706.0,0.00170699]
[1672712713022,9.06886767,16707.0,16706.0,0.70170699]
[1672712723104,9.06886767,16707.0,16706.0,0.70159038]
[1672712725607,9.06886767,16707.0,16706.0,0.00159038]
[1672712726346,9.53130877,16707.0,16706.0,0.00159038]
[1672712726585,9.53130877,16707.0,16706.0,0.70159038]
[1672712726823,9.06886767,16707.0,16706.0,0.70159038]
[1672712730548,9.83947519,16707.0,16706.0,0.70159038]
[1672712730792,10.72361863,16707.0,16706.0,0.69494361]
[1672712731045,11.22361863,16707.0,16706.0,0.69494361]
[1672712731590,10.45301111,16707.0,16706.0,0.69494361]
[1672712732562,11.22361863,16707.0,16706.0,0.69494361]
[1672712732793,10.45301111,16707.0,16706.0,0.69494361]
[1672712733773,10.45301111,16707.0,16706.0,0.68699837]
[1672712734262,10.45796097,16707.0,16706.0,0.68699837]
[1672712735533,10.45796097,16707.0,16706.0,0.68027913]
[1672712735774,10.45796097,16707.0,16706.0,0.67756648]
[1672712736014,9.98269173,16707.0,16706.0,0.67756648]
[1672712737857,9.98269173,16707.0,16706.0,0.64008245]
[1672712738115,10.14459173,16707.0,16706.0,0.64008245]
[1672712738878,9.26044829,16707.0,16706.0,0.64008245]
[1672712739177,9.26044829,16707.0,16706.0,0.63332376]
[1672712740867,9.26044829,16707.0,16706.0,0.63118147]
[1672712741364,1.59854829,16707.0,16706.0,0.63118147]
[1672712741618,2.20507629,16707.0,16706.0,0.79308147]
[1672712741870,1.89657629,16707.0,16706.0,2.11142747]
[1672712742431,1.29004829,16707.0,16706.0,1.42981872]
[1672712742676,1.29004829,16707.0,16706.0,2.04716172]
[1672712742959,1.29004829,16707.0,16706.0,1.42981872]
[1672712743200,1.29854829,16707.0,16706.0,1.42981872]
[1672712743715,1.59854829,16707.0,16706.0,1.42981872]
[1672712743967,2.20507629,16707.0,16706.0,1.42981872]
[1672712744283,2.20507629,16707.0,16706.0,1.42767304]
[1672712744684,1.59854829,16707.0,16706.0,1.42767304]
[1672712745949,1.59854829,16707.0,16706.0,1.42497389]
[1672712746693,1.59854829,16707.0,16706.0,0.78823664]
[1672712746694,2.20507629,16707.0,16706.0,0.78823664]
[1672712747439,2.20507629,16707.0,16706.0,0.78609824]
[1672712747949,2.20507629,16707.0,16706.0,0.62419824]
[1672712747950,2.21060674,16707.0,16706.0,0.62419824]
[1672712748932,2.21060674,16707.0,16706.0,0.61610742]
[1672712750699,2.21060674,16707.0,16706.0,0.61093015]
[1672712753169,1.60407874,16707.0,16706.0,0.61093015]
[1672712754668,1.60407874,16707.0,16706.0,0.60418128]
[1672712756116,1.60407874,16707.0,16706.0,0.6014844]
[1672712757117,1.60407874,16707.0,16706.0,0.58247372]
[1672712758597,1.60407874,16707.0,16706.0,0.57729767]
[1672712759083,1.60407874,16707.0,16706.0,0.57460233]
[1672712759342,1.60955429,16707.0,16705.0,0.1619]
[1672712759658,0.3,16706.0,16705.0,0.1619]
[1672712759883,1.53786062,16706.0,16705.0,0.1619]
[1672712760140,1.53786062,16706.0,16705.0,0.779243]
[1672712760386,1.53786062,16706.0,16705.0,0.1619]
[1672712760844,1.23786062,16706.0,16705.0,0.1619]
[1672712761344,1.25586062,16706.0,16705.0,0.1619]
[1672712761836,1.25586062,16706.0,16705.0,0.779243]
[1672712762095,1.25586062,16706.0,16705.0,0.1619]
[1672712762592,1.25586062,16706.0,16705.0,0.15976295]
[1672712766371,1.25586062,16706.0,16705.0,0.15706763]
[1672712766612,1.25586062,16706.0,16705.0,0.15689809]
[1672712766854,1.25586062,16706.0,16705.0,0.15440401]
[1672712767838,1.25586062,16706.0,16705.0,0.77174701]
[1672712768082,1.25586062,16706.0,16705.0,0.15440401]
[1672712768582,1.25033082,16706.0,16705.0,0.15440401]
[1672712769573,1.6429243,16706.0,16705.0,0.15440401]
[1672712769824,1.94273987,16706.0,16705.0,0.15440401]
[1672712770322,1.94250795,16706.0,16705.0,0.15440401]
[1672712771325,1.5335026,16706.0,16705.0,0.15440401]
[1672712772809,1.2335026,16706.0,16705.0,0.77174701]
[1672712773061,1.2335026,16706.0,16705.0,0.15440401]
[1672712773780,1.5335026,16706.0,16705.0,0.15440401]
[1672712774302,1.2335026,16706.0,16705.0,0.15440401]
[1672712774866,1.5335026,16706.0,16705.0,0.15440401]
[1672712775103,1.2335026,16706.0,16705.0,0.15440401]
[1672712775345,1.5335026,16706.0,16705.0,0.15440401]
[1672712775569,1.2335026,16706.0,16705.0,0.15440401]
[1672712775823,1.5335026,16706.0,16705.0,0.15440401]
[1672712776074,1.2335026,16706.0,16705.0,0.15440401]
[1672712780872,1.5335026,16706.0,16705.0,0.15440401]
[1672712781093,1.2335026,16706.0,16705.0,0.15440401]
[1672712781333,2.1400306,16706.0,16705.0,0.15440401]
[1672712781559,1.2335026,16706.0,16705.0,0.15440401]
[1672712781771,1.8400306,16706.0,16705.0,0.15440401]
[1672712782012,1.2335026,16706.0,16705.0,0.15440401]
[1672712786605,1.2335026,16706.0,16704.0,2.76909811]
[1672712787588,1.2155026,16706.0,16704.0,2.76909811]
[1672712787840,1.2335026,16706.0,16704.0,2.76909811]
[1672712794283,1.8400306,16706.0,16704.0,2.76909811]
[1672712794521,1.8400306,16706.0,16704.0,2.76898196]
[1672712800031,1.2335026,16706.0,16704.0,2.76898196]
[1672712802197,1.8400306,16706.0,16704.0,2.08726431]
[1672712802484,7.5,16705.0,16704.0,2.08726431]
[1672712802709,7.54068662,16705.0,16704.0,2.08726431]
[1672712803150,7.59919983,16705.0,16704.0,2.08726431]
[1672712803584,0.09919983,16705.0,16704.0,2.08726431]
[1672712803840,0.11619983,16705.0,16704.0,2.08726431]
[1672712804532,0.11612451,16705.0,16704.0,2.08726431]
[1672712818062,0.11612451,16705.0,16704.0,1.92656431]
[1672712819843,0.11612451,16705.0,16704.0,2.62656431]
[1672712823796,0.11612451,16705.0,16704.0,1.92656431]
[1672712824833,0.11612451,16705.0,16704.0,2.62656431]
[1672712827778,0.11612451,16705.0,16704.0,2.62649088]
[1672712830795,0.11612451,16705.0,16704.0,1.92649088]
[1672712831801,0.11612451,16705.0,16704.0,2.62649088]
[1672712832315,0.11612451,16705.0,16704.0,1.28578046]
[1672712837967,0.71474751,16705.0,16704.0,1.28578046]
[1672712843666,0.71474751,16705.0,16704.0,0.58578046]
[1672712844373,0.71474751,16705.0,16704.0,1.20312346]
[1672712844608,0.71474751,16705.0,16704.0,0.58578046]
[1672712844879,0.71474751,16705.0,16704.0,1.28578046]
[1672712846812,0.71474751,16705.0,16704.0,0.70628648]
[1672712847326,1.01474751,16705.0,16704.0,0.70628648]
[1672712848836,1.62127551,16705.0,16704.0,0.70628648]
[1672712849333,1.01474751,16705.0,16704.0,0.70628648]
[1672712850299,1.62127551,16705.0,16704.0,0.70620212]
[1672712850537,1.01474751,16705.0,16704.0,0.70620212]
[1672712850785,1.62127551,16705.0,16704.0,0.70620212]
[1672712851077,1.01474751,16705.0,16704.0,0.70620212]
[1672712852092,0.71474751,16705.0,16704.0,0.70620212]
[1672712852831,1.01474751,16705.0,16704.0,0.70620212]
[1672712859946,0.71474751,16705.0,16704.0,1.32354512]
[1672712860206,0.71474751,16705.0,16704.0,0.70620212]
[1672712860438,1.01474751,16705.0,16704.0,0.70620212]
[1672712860959,0.71474751,16705.0,16704.0,0.70620212]
[1672712861931,0.71474751,16705.0,16704.0,0.00620212]
[1672712862912,1.01474751,16705.0,16704.0,0.70620212]
[1672712868808,0.71474751,16705.0,16704.0,0.70620212]
[1672712869065,0.71474751,16705.0,16704.0,0.00620212]
[1672712869915,0.71474751,16705.0,16704.0,0.70620212]
[1672712870419,1.01474751,16705.0,16704.0,0.70620212]
[1672712871909,0.71474751,16705.0,16704.0,0.70620212]
[1672712872152,1.01474751,16705.0,16704.0,0.70620212]
[1672712872393,1.41460096,16705.0,16704.0,0.70620212]
[1672712873367,1.01460096,16705.0,16704.0,0.70620212]
[1672712873917,0.71460096,16705.0,16704.0,0.70620212]
[1672712875997,0.71460096,16705.0,16704.0,0.00620212]
[1672712877053,0.71460096,16705.0,16704.0,0.70620212]
[1672712878056,0.71460096,16705.0,16704.0,1.3749857]
[1672712883423,0.71460096,16705.0,16704.0,0.6749857]
[1672712883889,0.71460096,16705.0,16704.0,1.3749857]
[1672712887707,0.71460096,16705.0,16704.0,1.9923287]
[1672712888176,0.71460096,16705.0,16704.0,1.3749857]
[1672712891985,0.71460096,16705.0,16704.0,1.9923287]
[1672712892237,0.71460096,16705.0,16704.0,1.3749857]
[1672712894789,0.71460096,16705.0,16704.0,1.37489497]
[1672712902373,0.71460096,16705.0,16704.0,0.67489497]
[1672712903402,0.71460096,16705.0,16704.0,1.37489497]
[1672712909435,0.71460096,16705.0,16704.0,0.67489497]
[1672712910386,0.71460096,16705.0,16704.0,1.37489497]
[1672712910876,0.71460096,16705.0,16704.0,0.70611139]
[1672712911137,1.01460096,16705.0,16704.0,0.70611139]
[1672712911407,1.62112896,16705.0,16704.0,0.70611139]
[1672712911893,1.01460096,16705.0,16704.0,0.70611139]
[1672712913859,1.62112896,16705.0,16704.0,0.70611139]
[1672712915837,1.62112896,16705.0,16704.0,0.70604186]
[1672712916538,2.21975196,16705.0,16704.0,0.70604186]
[1672712923711,2.21975196,16705.0,16704.0,0.00604186]
[1672712923967,2.21968054,16705.0,16704.0,0.00604186]
[1672712924706,2.21968054,16705.0,16704.0,0.70604186]
[1672712934713,2.21968054,16705.0,16704.0,0.00604186]
[1672712935714,2.21968054,16705.0,16704.0,0.70604186]
[1672712941848,2.21968054,16705.0,16704.0,0.00604186]
[1672712942791,2.21968054,16705.0,16704.0,0.70604186]
[1672712944579,2.21968054,16705.0,16704.0,0.70593486]
[1672712948624,2.21968054,16705.0,16704.0,0.00593486]
[1672712949625,2.21968054,16705.0,16704.0,0.70593486]
[1672712950842,1.61315254,16705.0,16704.0,0.70593486]
[1672712951339,2.21968054,16705.0,16704.0,0.70593486]
[1672712952085,1.61315254,16705.0,16704.0,0.70593486]
[1672712952304,2.21968054,16705.0,16704.0,0.70593486]
[1672712952812,1.61315254,16705.0,16704.0,0.70593486]
[1672712953249,2.21968054,16705.0,16704.0,0.70593486]
[1672712955013,1.61315254,16705.0,16704.0,0.70593486]
[1672712955748,2.21968054,16705.0,16704.0,0.00593486]
[1672712956737,2.21968054,16705.0,16704.0,0.70593486]
[1672712967730,2.21968054,16705.0,16704.0,0.7058711]
[1672712969205,2.21968054,16705.0,16704.0,0.0058711]
[1672712970195,2.21968054,16705.0,16704.0,0.7058711]
[1672712975782,1.61315254,16705.0,16704.0,0.7058711]
[1672712976268,1.61315254,16705.0,16704.0,0.0058711]
[1672712976756,2.22015173,16705.0,16704.0,0.0058711]
[1672712977008,2.22015173,16705.0,16704.0,0.7058711]
[1672712978153,1.61315254,16705.0,16704.0,0.7058711]
[1672712978328,2.22013639,16705.0,16704.0,0.7058711]
[1672712979462,1.61315254,16705.0,16704.0,0.7058711]
[1672712980721,2.22008538,16705.0,16704.0,0.7058711]
[1672712981928,1.61315254,16705.0,16704.0,0.7058711]
[1672712983027,2.22004193,16705.0,16704.0,0.7058711]
[1672712990290,2.22004193,16705.0,16704.0,0.70579619]
[1672712993119,1.62165254,16705.0,16704.0,0.70579619]
[1672712993648,2.02165254,16705.0,16704.0,0.70579619]
[1672713003631,1.62165254,16705.0,16704.0,0.70579619]
[1672713004398,1.62165254,16705.0,16704.0,0.00579619]
[1672713004639,2.02165254,16705.0,16704.0,0.00579619]
[1672713005373,1.62165254,16705.0,16704.0,0.70579619]
[1672713005832,2.02165254,16705.0,16704.0,0.70579619]
[1672713009093,1.62165254,16705.0,16704.0,0.70579619]
[1672713011393,1.62165254,16705.0,16704.0,0.00579619]
[1672713011894,2.02165254,16705.0,16704.0,0.00579619]
[1672713012421,2.2131041,16705.0,16704.0,0.70579619]
[1672713012660,1.62165254,16705.0,16704.0,0.70579619]
[1672713013160,9.52165254,16705.0,16704.0,0.70579619]
[1672713013640,9.52165254,16705.0,16704.0,0.70571871]
[1672713014147,10.28873008,16705.0,16704.0,0.70571871]
[1672713014405,9.52165254,16705.0,16704.0,0.70571871]
[1672713014661,9.68355254,16705.0,16704.0,0.70571871]
[1672713017915,2.02165254,16705.0,16704.0,0.70571871]
[1672713018415,9.52165254,16705.0,16704.0,0.70571871]
[1672713019428,2.02165254,16705.0,16704.0,0.70571871]
[1672713020197,2.02165254,16705.0,16704.0,0.00571871]
[1672713020728,2.02165254,16705.0,16704.0,0.70571871]
[1672713023424,9.52165254,16705.0,16704.0,0.70571871]
[1672713027213,2.02165254,16705.0,16704.0,0.70571871]
[1672713027733,9.52165254,16705.0,16704.0,0.70571871]
[1672713028203,9.52165254,16705.0,16704.0,0.00571871]
[1672713029205,9.52165254,16705.0,16704.0,0.70571871]
[1672713029788,9.12165254,16705.0,16704.0,0.70571871]
[1672713030567,2.228417,16705.0,16704.0,0.70571871]
[1672713030820,2.228417,16705.0,16704.0,1.34286641]
[1672713034174,2.228417,16705.0,16704.0,0.70571871]
[1672713038413,2.228417,16705.0,16704.0,0.7056587]
[1672713038668,2.22829976,16705.0,16704.0,0.7056587]
[1672713040793,2.22829976,16705.0,16704.0,0.0056587]
[1672713041806,2.22829976,16705.0,16704.0,0.7056587]
[1672713047632,2.0215353,16705.0,16704.0,0.7056587]
[1672713047888,2.0215353,16705.0,16704.0,0.0056587]
[1672713048830,2.0215353,16705.0,16704.0,0.7056587]
[1672713050394,2.62829976,16705.0,16704.0,0.7056587]
[1672713051140,2.22829976,16705.0,16704.0,0.7056587]
[1672713051388,1.6215353,16705.0,16704.0,0.7056587]
[1672713057863,1.6215353,16705.0,16704.0,0.0056587]
[1672713058900,1.6215353,16705.0,16704.0,0.7056587]
[1672713059144,2.0215353,16705.0,16704.0,0.7056587]
[1672713060386,2.62829976,16705.0,16704.0,0.7056587]
[1672713062691,2.22829976,16705.0,16704.0,0.70559204]
[1672713066696,2.02144996,16705.0,16704.0,0.70559204]
[1672713071123,2.62845263,16705.0,16704.0,0.00559204]
[1672713072364,2.62845263,16705.0,16704.0,0.70559204]
[1672713072860,2.22845263,16705.0,16704.0,0.70559204]
[1672713079732,2.22845263,16705.0,16704.0,0.00559204]
[1672713080256,1.43120663,16705.0,16704.0,0.00559204]
[1672713080495,2.62845263,16705.0,16704.0,0.00559204]
[1672713080746,2.62845263,16705.0,16704.0,0.70559204]
[1672713086980,2.62845263,16705.0,16704.0,0.00559204]
[1672713087226,2.62845263,16705.0,16704.0,0.70559204]
[1672713088901,2.22845263,16705.0,16704.0,0.70552613]
[1672713090629,1.62144996,16705.0,16704.0,0.70552613]
[1672713091362,2.22844608,16705.0,16704.0,0.70552613]
[1672713093190,2.02144996,16705.0,16704.0,0.00552613]
[1672713094196,2.02144996,16705.0,16704.0,0.70552613]
[1672713098468,9.52144996,16705.0,16704.0,0.70552613]
[1672713100138,2.02144996,16705.0,16704.0,0.70552613]
[1672713100546,9.52144996,16705.0,16704.0,0.70552613]
[1672713101842,9.52144996,16705.0,16704.0,0.00552613]
[1672713102836,9.52144996,16705.0,16704.0,0.70552613]
[1672713103324,9.46293675,16705.0,16704.0,0.70552613]
[1672713103577,9.52372794,16705.0,16704.0,0.70552613]
[1672713112403,9.52372794,16705.0,16704.0,0.00552613]
[1672713113437,9.52372794,16705.0,16704.0,0.70552613]
[1672713113677,9.52372794,16705.0,16704.0,0.70542361]
[1672713117630,2.02372794,16705.0,16704.0,0.70542361]
[1672713119617,2.02372794,16705.0,16704.0,0.00542361]
[1672713120585,2.02372794,16705.0,16704.0,0.70542361]
[1672713122844,1.62372794,16705.0,16704.0,0.70542361]
[1672713123876,2.02372794,16705.0,16704.0,0.70542361]
[1672713124353,1.62372794,16705.0,16704.0,0.70542361]
[1672713124860,2.0236087,16705.0,16704.0,0.70542361]
[1672713126394,1.3236087,16705.0,16704.0,1.36984379]
[1672713126641,1.93062033,16705.0,16704.0,1.36984379]
[1672713127159,1.93062033,16705.0,16704.0,1.36484379]
[1672713127652,1.3236087,16705.0,16704.0,1.36484379]
[1672713127908,1.3236087,16705.0,16704.0,1.98218679]
[1672713128154,1.3236087,16705.0,16704.0,1.36484379]
[1672713128894,1.6236087,16705.0,16704.0,1.36484379]
[1672713129165,1.3236087,16705.0,16704.0,1.36484379]
[1672713129899,1.3236087,16705.0,16704.0,1.98218679]
[1672713130412,1.3236087,16705.0,16704.0,1.35984379]
[1672713133784,1.3236087,16705.0,16704.0,1.35484379]
[1672713134026,1.3236087,16705.0,16704.0,1.51674379]
[1672713134731,1.3236087,16705.0,16704.0,2.13408679]
[1672713134975,1.6236087,16705.0,16704.0,0.8619]
[1672713137897,1.3236087,16705.0,16704.0,0.695]
[1672713138136,1.6236087,16705.0,16704.0,0.695]
[1672713138390,1.3236087,16705.0,16704.0,0.695]
[1672713138568,1.6236087,16705.0,16704.0,0.695]
[1672713139320,1.3236087,16705.0,16704.0,0.695]
[1672713140324,1.6236087,16705.0,16704.0,0.695]
[1672713141311,1.3236087,16705.0,16704.0,0.695]
[1672713142086,1.6236087,16705.0,16704.0,0.695]
[1672713143087,1.6236087,16705.0,16703.0,1.52428911]
[1672713143326,0.0085,16704.0,16703.0,1.52436239]
[1672713143569,0.64784562,16704.0,16703.0,0.79469515]
[1672713144054,0.64784562,16704.0,16703.0,1.49469515]
[1672713144271,0.64784562,16704.0,16703.0,2.22422723]
[1672713144521,0.72429556,16704.0,16703.0,2.22422723]
[1672713145267,0.72429556,16704.0,16703.0,1.49469515]
[1672713147254,1.32295456,16704.0,16703.0,1.49469515]
[1672713147975,0.72429556,16704.0,16703.0,1.49469515]
[1672713149002,0.72429556,16704.0,16703.0,2.22420609]
[1672713149951,0.72429556,16704.0,16703.0,0.79469515]
[1672713150693,0.72429556,16704.0,16703.0,1.49469515]
[1672713150911,0.72429556,16704.0,16703.0,2.22417758]
[1672713154689,0.12563656,16704.0,16703.0,2.84152058]
[1672713155177,0.12563656,16704.0,16703.0,2.22417758]
[1672713156272,0.11713656,16704.0,16703.0,2.61943495]
[1672713156467,0.11713656,16704.0,16703.0,4.44290005]
[1672713156705,0.11713656,16704.0,16703.0,3.73786293]
[1672713157465,0.10113656,16704.0,16703.0,3.73786293]
[1672713157743,0.10313656,16704.0,16703.0,3.86386293]
[1672713159781,0.10313656,16704.0,16703.0,3.86376866]
[1672713160508,0.04268662,16704.0,16703.0,3.863889]
[1672713161004,1.00635476,16709.0,16704.0,1.05731338]
[1672713161259,0.0085,16708.0,16707.0,0.1619]
[1672713161511,0.0085,16708.0,16707.0,1.74618525]
[1672713161771,0.00785076,16709.0,16707.0,1.66762523]
[1672713162016,0.00785076,16709.0,16708.0,0.939943]
[1672713162268,0.00785076,16709.0,16708.0,1.66749145]
[1672713162754,0.00785076,16709.0,16708.0,1.66737802]
[1672713163002,0.01720045,16709.0,16708.0,1.639943]